bitfinex/quotes_SOLUSD_20240717
["timestamp","ask_amount","ask_price","bid_price","bid_amount"]
[1721227317475,0.8265847,160.98,160.92,6.2141]
[1721227317676,6.2129,160.96,160.93,45.0]
[1721227317984,6.2133,160.95,160.93,45.0]
[1721227318165,0.8265847,160.98,160.92,45.0]
[1721227318497,45.2312,160.97,160.87,15.5398]
[1721227318689,0.8265847,160.96,160.88,45.0]
[1721227318868,45.2312,160.97,160.88,45.0]
[1721227318869,6.2139,160.93,160.89,6.2153]
[1721227319066,6.2139,160.93,160.9,45.0]
[1721227319386,0.8265847,160.95,160.9,45.0]
[1721227319387,6.2135,160.94,160.9,45.0]
[1721227319592,6.2135,160.94,160.9,51.2149]
[1721227320271,7.0397847,160.95,160.91,6.2146]
[1721227320566,0.8265847,160.94,160.91,6.2146]
[1721227320773,6.2125,160.97,160.92,51.2142]
[1721227320957,0.8265847,160.99,160.94,6.2131]
[1721227321165,7.0384847,160.98,160.94,6.2131]
[1721227321467,6.2116,160.99,160.95,52.45555713]
[1721227321773,6.2116,160.99,160.95,46.24255713]
[1721227321974,0.8265847,160.98,160.95,45.0]
[1721227322168,0.8265847,161.02,160.94,45.0]
[1721227322374,6.2123,160.97,160.94,45.0]
[1721227322583,6.2124,160.97,160.94,45.0]
[1721227323186,0.8265847,161.01,160.95,1.24254114]
[1721227323491,0.8265847,161.0,160.94,45.0]
[1721227323688,0.8265847,161.0,160.95,1.24249288]
[1721227323860,0.8265847,161.0,160.94,45.0]
[1721227323861,6.2123,160.97,160.94,45.0]
[1721227324067,6.2128,160.96,160.94,45.0]
[1721227324396,6.2131,160.95,160.94,45.0]
[1721227324590,6.2131,160.95,160.93,15.9382]
[1721227324786,6.2131,160.95,160.9,21.7518]
[1721227325097,6.2131,160.95,160.91,51.2145]
[1721227325590,6.2135,160.94,160.91,45.0]
[1721227325973,6.2131,160.95,160.91,52.45737309]
[1721227326288,6.2131,160.95,160.91,52.45734494]
[1721227326493,6.2136,160.94,160.91,45.0]
[1721227326862,6.214,160.93,160.91,45.0]
[1721227327065,6.2142,160.92,160.89,15.0038]
[1721227327268,6.2142,160.92,160.88,6.2157]
[1721227327490,7.0398847,160.95,160.89,60.5381]
[1721227327688,36.1015,160.98,160.91,15.5362]
[1721227327689,6.2127,160.96,160.91,15.5362]
[1721227327988,0.8265847,160.95,160.91,15.5362]
[1721227328179,7.0397847,160.95,160.91,21.7505]
[1721227328490,0.8265847,160.97,160.92,7.45689777]
[1721227328712,6.2129,160.96,160.92,6.2141]
[1721227328870,6.2136,160.94,160.89,45.0]
[1721227329070,6.2149,160.91,160.86,6.2163]
[1721227329380,6.2149,160.91,160.86,6.2164]
[1721227329700,0.8265847,160.93,160.87,6.2161]
[1721227329881,7.0408847,160.92,160.88,6.2156]
[1721227330082,7.0400847,160.94,160.87,15.5401]
[1721227330269,0.8265847,160.94,160.88,6.2156]
[1721227330470,6.2146,160.91,160.87,15.5401]
[1721227330682,0.8265847,160.9,160.87,15.5401]
[1721227330964,0.8265847,160.94,160.87,15.5401]
[1721227331171,6.2153,160.9,160.85,22.1286]
[1721227331369,0.8265847,160.89,160.85,22.1286]
[1721227331598,7.0419847,160.89,160.85,15.9118]
[1721227331777,0.8265847,160.88,160.85,15.9118]
[1721227332087,0.8265847,160.88,160.84,0.8269982]
[1721227332389,6.2157,160.89,160.84,8.28759809]
[1721227332603,6.2151,160.9,160.84,2.07029905]
[1721227332805,0.8265847,160.89,160.84,0.8269982]
[1721227333091,6.2139,160.93,160.84,33.15600509]
[1721227333319,0.8265847,160.94,160.84,33.15600509]
[1721227333320,0.8265847,160.94,160.91,6.2146]
[1721227333482,0.8265847,160.94,160.9,6.215]
[1721227333666,7.0402847,160.94,160.89,21.7529]
[1721227333865,7.0402847,160.94,160.9,45.0]
[1721227334077,0.8265847,160.94,160.9,51.2149]
[1721227334669,6.2132,160.95,160.91,6.2146]
[1721227334870,0.8265847,160.97,160.93,6.2137]
[1721227335073,7.0389847,160.97,160.93,6.2137]
[1721227335299,6.2128,160.96,160.92,7.45690938]
[1721227335500,6.2132,160.95,160.93,45.0]
[1721227335673,6.2128,160.96,160.93,45.0]
[1721227336892,16.6437,160.99,160.92,45.0]
[1721227336893,0.8265847,160.95,160.92,45.0]
[1721227337095,15.5312,160.97,160.88,32.1213]
[1721227337395,6.2145,160.92,160.88,38.337]
[1721227337583,6.2139,160.93,160.89,6.2153]
[1721227337787,6.2135,160.94,160.9,6.2149]
[1721227338294,0.8265847,160.93,160.88,38.3367]
[1721227338502,0.8265847,160.96,160.89,45.0]
[1721227338673,0.8265847,160.95,160.89,45.0]
[1721227339078,0.8265847,160.95,160.86,6.2165]
[1721227339079,6.2147,160.91,160.86,6.2165]
[1721227339600,7.0416847,160.9,160.86,6.2165]
[1721227339785,6.2151,160.9,160.86,6.2165]
[1721227339986,6.2147,160.91,160.87,6.216]
[1721227340303,0.8265847,160.9,160.85,15.5418]
[1721227340479,1.1665847,160.94,160.85,15.5418]
[1721227340685,6.2154,160.89,160.85,15.5418]
[1721227341003,0.8265847,160.88,160.85,15.5418]
[1721227341595,7.0423847,160.88,160.85,15.5418]
[1721227341884,0.8265847,160.87,160.85,15.5418]
[1721227342498,0.8265847,160.87,160.84,7.0441982]
[1721227342908,7.0412847,160.91,160.86,6.2165]
[1721227343107,6.2153,160.9,160.85,6.2168]
[1721227343277,0.8265847,160.89,160.86,6.2165]
[1721227343483,0.8265847,160.9,160.85,1.24324947]
[1721227343684,0.8265847,160.89,160.84,0.8269982]
[1721227343884,15.5351,160.93,160.84,0.8269982]
[1721227343885,0.8265847,160.92,160.85,6.2168]
[1721227344176,6.2146,160.91,160.86,1.24321867]
[1721227344602,0.8265847,160.92,160.86,16.78421867]
[1721227344812,0.8265847,160.92,160.88,6.2155]
[1721227344992,6.2142,160.93,160.88,6.2155]
[1721227344993,0.8265847,160.93,160.89,51.2154]
[1721227345389,6.2135,160.94,160.9,7.45780477]
[1721227345390,0.8265847,160.94,160.9,7.45780477]
[1721227345706,6.2133,160.95,160.9,7.45780477]
[1721227345908,7.0400847,160.94,160.9,7.45780477]
[1721227346109,6.2139,160.93,160.89,51.2152]
[1721227346698,6.2139,160.93,160.89,45.0]
[1721227347005,0.8265847,160.92,160.89,45.0]
[1721227347212,0.9965847,160.96,160.88,45.0]
[1721227347500,6.2153,160.9,160.88,45.0]
[1721227347709,0.8265847,160.94,160.85,21.7586]
[1721227347934,6.2156,160.89,160.85,15.5418]
[1721227348213,6.2151,160.9,160.86,1.2432508]
[1721227348511,0.8265847,160.92,160.87,15.5396]
[1721227348821,0.8265847,160.92,160.88,7.45866745]
[1721227348983,6.2147,160.91,160.88,1.24296745]
[1721227349181,6.2147,160.91,160.87,21.7557]
[1721227349385,6.2142,160.92,160.88,52.4586908]
[1721227349603,0.8265847,160.91,160.84,17.61289032]
[1721227349793,6.2156,160.89,160.85,45.0]
[1721227349998,0.8265847,160.88,160.84,22.5870982]
[1721227350182,0.8265847,160.93,160.84,22.5870982]
[1721227350379,6.2155,160.89,160.85,1.24328342]
[1721227350599,7.0424847,160.88,160.84,22.5870982]
[1721227350804,0.8265847,160.87,160.84,22.5870982]
[1721227351111,6.2155,160.89,160.85,6.2169]
[1721227351418,7.0423847,160.88,160.84,16.3698982]
[1721227351710,0.8265847,160.87,160.84,16.3698982]
[1721227351907,0.8265847,160.88,160.84,23.83053032]
[1721227352110,7.0424847,160.88,160.84,17.61323032]
[1721227352291,6.2159,160.88,160.84,23.83044484]
[1721227352492,6.2155,160.89,160.84,23.83044484]
[1721227352813,0.8265847,160.88,160.84,16.3698982]
[1721227353001,6.2162,160.87,160.84,0.8269982]
[1721227353208,0.8265847,160.86,160.84,0.8269982]
[1721227353512,7.0431847,160.86,160.84,0.8269982]
[1721227353718,0.8265847,160.85,160.84,0.8269982]
[1721227353886,6.2166,160.86,160.84,0.8269982]
[1721227354085,6.2163,160.87,160.84,0.8269982]
[1721227354313,0.8265847,160.89,160.84,0.8269982]
[1721227355092,7.0424847,160.88,160.84,45.8269982]
[1721227355315,7.0427847,160.87,160.84,0.8269982]
[1721227355494,7.0431847,160.86,160.84,0.8269982]
[1721227355700,6.2166,160.86,160.84,0.8269982]
[1721227355895,6.2163,160.87,160.84,0.8269982]
[1721227356203,0.8265847,160.86,160.84,0.8269982]
[1721227356392,6.2163,160.87,160.84,0.8269982]
[1721227356594,0.8265847,160.86,160.84,0.8269982]
[1721227356788,6.2158,160.88,160.84,0.8269982]
[1721227356987,7.0427847,160.87,160.84,0.8269982]
[1721227357225,6.2159,160.88,160.84,0.8269982]
[1721227357390,6.2159,160.88,160.84,7.0442982]
[1721227357594,0.8265847,160.87,160.84,7.0442982]
[1721227357791,0.8265847,160.91,160.85,1.24334944]
[1721227358017,7.0415847,160.91,160.86,6.2164]
[1721227358220,6.2146,160.92,160.87,6.216]
[1721227358431,6.2146,160.92,160.87,6.2161]
[1721227358713,0.8265847,160.91,160.87,6.2161]
[1721227358910,6.215,160.9,160.86,37.7723]
[1721227359122,6.215,160.9,160.87,45.0]
[1721227359326,6.215,160.9,160.86,37.7723]
[1721227359629,0.8265847,160.89,160.86,37.7723]
[1721227359803,6.215,160.9,160.86,37.7723]
[1721227360425,6.2143,160.92,160.86,31.5558]
[1721227360625,51.7639,160.95,160.86,37.7721]
[1721227360626,7.2115847,160.91,160.86,37.7721]
[1721227360915,6.2151,160.9,160.86,31.5558]
[1721227361118,0.9965847,160.91,160.84,0.8269982]
[1721227361119,0.8265847,160.89,160.84,0.8269982]
[1721227361318,6.2159,160.88,160.84,45.8269982]
[1721227361620,0.8265847,160.87,160.84,0.8269982]
[1721227361826,7.0427847,160.87,160.84,0.8269982]
[1721227362522,0.8265847,160.86,160.84,0.8269982]
[1721227363299,7.0431847,160.86,160.84,0.8269982]
[1721227363503,0.8265847,160.85,160.84,0.8269982]
[1721227363911,0.8265847,160.86,160.84,0.8269982]
[1721227364601,7.0432847,160.86,160.84,0.8269982]
[1721227364797,0.8265847,160.85,160.84,0.8269982]
[1721227365039,7.0434847,160.85,160.84,0.8269982]
[1721227365264,6.2169,160.85,160.84,0.8269982]
[1721227366202,6.2166,160.86,160.84,0.8269982]
[1721227366836,6.2169,160.85,160.84,0.8269982]
[1721227367127,0.9965847,160.89,160.84,0.8269982]
[1721227367325,6.2165,160.87,160.84,0.8269982]
[1721227367633,7.0431847,160.86,160.84,0.8269982]
[1721227367810,0.8265847,160.85,160.84,0.8269982]
[1721227368424,6.2166,160.86,160.84,0.8269982]
[1721227368727,7.0434847,160.85,160.84,0.8269982]
[1721227368934,6.2169,160.85,160.84,0.8269982]
[1721227370214,7.0434847,160.85,160.84,0.8269982]
[1721227370541,7.3834847,160.85,160.84,0.8269982]
[1721227372708,27.3834847,160.85,160.84,0.8269982]
[1721227374230,27.3834847,160.85,160.84,9.82e-05]
[1721227374231,43.2695847,160.85,160.84,9.82e-05]
[1721227374440,88.2695847,160.85,160.84,9.82e-05]
[1721227374825,6.2199,160.78,160.73,21.7747]
[1721227375023,6.2196,160.79,160.74,7.4651177]
[1721227375436,0.8265847,160.78,160.75,6.2208]
[1721227375746,7.0462847,160.78,160.74,6.221]
[1721227376039,6.2197,160.78,160.74,7.46511045]
[1721227376540,0.8265847,160.77,160.73,21.7747]
[1721227376742,6.2193,160.79,160.74,51.2211]
[1721227376943,0.8265847,160.78,160.74,52.46521013]
[1721227377241,0.8265847,160.79,160.74,46.24411013]
[1721227377452,0.8265847,160.79,160.76,6.2203]
[1721227377750,0.8265847,160.79,160.75,21.7724]
[1721227377913,7.0458847,160.79,160.75,15.5516]
[1721227378114,6.2197,160.78,160.74,45.0]
[1721227378310,0.8265847,160.77,160.74,45.0]
[1721227379128,7.0465847,160.77,160.74,45.0]
[1721227379326,6.22,160.77,160.73,6.2215]
[1721227379727,6.2196,160.79,160.72,31.4073]
[1721227380043,0.8265847,160.78,160.73,45.0]
[1721227380352,7.0464847,160.78,160.73,51.2214]
[1721227380637,7.0462847,160.78,160.74,6.2212]
[1721227380833,0.8265847,160.77,160.74,6.2212]
[1721227381035,0.8265847,160.78,160.75,6.2208]
[1721227381538,0.8265847,160.78,160.74,6.2211]
[1721227381924,0.17,160.8,160.77,6.2199]
[1721227381925,0.8265847,160.8,160.77,6.2199]
[1721227382127,0.8265847,160.82,160.75,45.0]
[1721227382318,7.0447847,160.82,160.77,6.2197]
[1721227382635,7.0448847,160.82,160.78,15.5486]
[1721227382956,0.8265847,160.82,160.75,21.7726]
[1721227383150,0.8265847,160.83,160.75,15.5519]
[1721227383437,6.22,160.78,160.73,51.2215]
[1721227383641,0.8265847,160.77,160.73,51.2215]
[1721227383851,0.8265847,160.8,160.73,45.0]
[1721227384032,50.5265847,160.84,160.77,6.2199]
[1721227384234,50.5265847,160.84,160.73,46.24390311]
[1721227384235,6.2182,160.82,160.73,46.24390311]
[1721227384445,7.2143847,160.83,160.76,15.5507]
[1721227384619,6.2182,160.82,160.77,51.2197]
[1721227385130,0.8265847,160.81,160.78,6.2196]
[1721227385170,7.0451847,160.81,160.77,45.0]
[1721227385360,15.8861,160.85,160.77,45.0]
[1721227385361,6.2181,160.82,160.78,6.2196]
[1721227385540,0.8265847,160.81,160.77,45.0]
[1721227385735,0.8265847,160.81,160.76,15.5507]
[1721227385736,6.2188,160.81,160.76,15.5507]
[1721227385948,7.0455847,160.8,160.76,21.7709]
[1721227386119,15.8861,160.85,160.74,6.2209]
[1721227386120,7.0460847,160.79,160.74,6.2209]
[1721227386324,29.7,160.83,160.75,45.0]
[1721227386325,7.0462847,160.78,160.75,45.0]
[1721227386518,0.8265847,160.77,160.73,21.7749]
[1721227387322,7.0465847,160.77,160.73,15.5535]
[1721227387523,0.8265847,160.76,160.73,15.5535]
[1721227387823,0.8265847,160.79,160.73,15.5535]
[1721227388145,0.9965847,160.78,160.74,6.2211]
[1721227388535,7.2162847,160.78,160.73,21.775]
[1721227388934,6.2201,160.77,160.73,15.5535]
[1721227389144,7.0470847,160.76,160.72,6.2218]
[1721227389450,0.8265847,160.75,160.71,6.2223]
[1721227389653,7.0473847,160.75,160.7,21.7791]
[1721227389823,0.8265847,160.74,160.7,21.7791]
[1721227390020,0.8265847,160.73,160.7,21.7791]
[1721227390330,0.8265847,160.73,160.7,15.5564]
[1721227390840,7.0482847,160.73,160.69,6.2231]
[1721227391042,0.8265847,160.72,160.67,16.3863982]
[1721227391242,0.8265847,160.72,160.67,22.6099982]
[1721227391445,7.0485847,160.72,160.67,22.6099982]
[1721227391651,0.8265847,160.71,160.69,6.2231]
[1721227391947,7.0481847,160.73,160.68,6.2234]
[1721227392846,0.8265847,160.72,160.68,6.2234]
[1721227393049,7.0485847,160.72,160.68,6.2234]
[1721227393348,0.8265847,160.71,160.67,22.6101982]
[1721227393549,0.8265847,160.71,160.68,6.2235]
[1721227393755,0.8265847,160.71,160.69,6.2228]
[1721227394048,7.0478847,160.74,160.69,6.2228]
[1721227394236,0.8265847,160.73,160.69,15.5572]
[1721227394545,6.2208,160.75,160.71,15.5555]
[1721227394748,0.8265847,160.74,160.7,6.2226]
[1721227394949,0.8265847,160.74,160.67,2.07139521]
[1721227394950,6.222,160.72,160.68,15.5585]
[1721227397255,0.8265847,160.72,160.69,15.5572]
[1721227397447,0.8265847,160.72,160.69,21.7803]
[1721227397640,6.2213,160.74,160.69,21.7803]
[1721227397641,0.8265847,160.77,160.69,15.5572]
[1721227397967,7.0470847,160.76,160.71,6.2221]
[1721227398155,0.8265847,160.76,160.7,1.24438916]
[1721227398364,15.6534,160.79,160.71,1.24430882]
[1721227398531,0.8265847,160.78,160.74,6.2211]
[1721227399154,7.0463847,160.78,160.73,21.7751]
[1721227399546,0.8265847,160.77,160.74,6.2211]
[1721227399865,0.8265847,160.77,160.73,21.7751]
[1721227400042,7.0467847,160.77,160.73,15.5536]
[1721227400353,0.8265847,160.8,160.73,21.7749]
[1721227400553,0.9965847,160.79,160.73,21.7749]
[1721227400762,6.2199,160.78,160.73,21.7749]
[1721227400973,0.8265847,160.77,160.73,21.7749]
[1721227402556,7.0465847,160.77,160.73,15.5536]
[1721227402761,7.0471847,160.76,160.71,51.222]
[1721227402975,0.8265847,160.75,160.71,51.222]
[1721227403950,0.8265847,160.75,160.72,6.2219]
[1721227404159,6.2197,160.78,160.73,6.2215]
[1721227404457,0.8265847,160.77,160.73,6.2215]
[1721227404666,0.8265847,160.76,160.73,6.2215]
[1721227405077,0.8265847,160.76,160.72,6.2218]
[1721227405371,6.2209,160.75,160.71,66.7774]
[1721227405560,0.8265847,160.74,160.71,66.7774]
[1721227405861,6.2203,160.77,160.72,6.2219]
[1721227406064,0.8265847,160.76,160.72,6.2219]
[1721227406266,7.2158847,160.79,160.73,16.79780412]
[1721227406473,0.9965847,160.79,160.73,15.5535]
[1721227406646,6.2202,160.77,160.73,21.775]
[1721227406835,0.9965847,160.79,160.73,21.775]
[1721227406836,0.9965847,160.79,160.74,6.2211]
[1721227407041,7.2158847,160.79,160.73,16.79762122]
[1721227407243,0.8265847,160.8,160.76,6.2201]
[1721227407552,0.8265847,160.8,160.74,6.2211]
[1721227407755,0.8265847,160.8,160.73,6.2214]
[1721227408072,0.8265847,160.8,160.74,6.2211]
[1721227408280,0.8265847,160.8,160.76,6.2201]
[1721227408573,0.8265847,160.8,160.77,6.22]
[1721227408744,7.0449847,160.82,160.77,6.22]
[1721227409272,6.2189,160.8,160.76,21.7709]
[1721227409453,6.2189,160.8,160.76,15.5506]
[1721227409653,7.0458847,160.79,160.74,6.2211]
[1721227409862,6.2197,160.78,160.75,45.0]
[1721227410438,0.8265847,160.77,160.73,15.5534]
[1721227410641,6.2201,160.77,160.72,6.2219]
[1721227410846,7.0470847,160.76,160.71,6.2223]
[1721227411053,0.8265847,160.75,160.71,6.2223]
[1721227411251,0.8265847,160.75,160.72,6.2218]
[1721227411454,7.0470847,160.76,160.72,6.2218]
[1721227411774,0.8265847,160.75,160.71,6.2222]
[1721227412159,0.8265847,160.8,160.72,1.24427822]
[1721227412354,0.8265847,160.79,160.75,6.2207]
[1721227412591,6.3896,160.78,160.74,15.5525]
[1721227412871,7.0466847,160.77,160.72,6.2218]
[1721227413051,0.8265847,160.76,160.72,6.2218]
[1721227413246,6.2195,160.79,160.73,1.24421135]
[1721227413560,0.8265847,160.78,160.72,45.0]
[1721227413757,7.0462847,160.78,160.73,15.5535]
[1721227413956,7.0462847,160.78,160.73,21.775]
[1721227414376,15.7065847,160.77,160.73,21.775]
[1721227414677,15.7065847,160.76,160.73,21.775]
[1721227415049,6.2197,160.78,160.73,21.775]
[1721227415255,15.7065847,160.77,160.74,6.2211]
[1721227415971,0.8265847,160.76,160.73,21.775]
[1721227416157,15.7065847,160.76,160.73,21.775]
[1721227416778,6.2208,160.75,160.7,36.6586]
[1721227416979,15.7065847,160.74,160.7,21.7786]
[1721227417275,0.8265847,160.73,160.7,21.7786]
[1721227417688,14.88,160.72,160.7,15.5562]
[1721227418046,15.7065847,160.71,160.68,6.2234]
[1721227418366,15.7065847,160.7,160.68,6.2234]
[1721227418575,15.7065847,160.7,160.67,22.6098982]
[1721227418879,14.88,160.7,160.68,6.2235]
[1721227419074,6.2213,160.74,160.69,6.2231]
[1721227419244,15.7065847,160.73,160.7,6.2225]
[1721227419565,0.8265847,160.73,160.7,6.2225]
[1721227419875,14.88,160.74,160.71,6.2222]
[1721227419876,15.7065847,160.74,160.71,6.2222]
[1721227420079,21.9278847,160.74,160.7,6.2226]
[1721227420253,0.8265847,160.74,160.7,6.2226]
[1721227420451,0.8265847,160.75,160.72,6.2219]
[1721227420756,7.0473847,160.75,160.71,6.2223]
[1721227421369,0.8265847,160.75,160.71,6.2223]
[1721227421567,6.2203,160.77,160.71,15.5555]
[1721227421751,6.2208,160.75,160.71,15.5555]
[1721227421953,7.0477847,160.74,160.7,6.2223]
[1721227422278,6.2212,160.74,160.7,6.2223]
[1721227423661,0.8265847,160.73,160.68,15.5582]
[1721227423864,7.0482847,160.73,160.68,15.5582]
[1721227424162,7.0486847,160.72,160.68,21.7817]
[1721227424555,0.8265847,160.72,160.68,21.7817]
[1721227424749,0.8265847,160.72,160.67,0.8269982]
[1721227424750,0.8265847,160.75,160.7,15.5564]
[1721227424995,7.0474847,160.75,160.7,21.7791]
[1721227425362,0.8265847,160.75,160.71,6.2222]
[1721227425548,7.0474847,160.75,160.71,6.2222]
[1721227425751,6.2214,160.74,160.7,15.5564]
[1721227425969,0.8265847,160.75,160.7,15.5564]
[1721227425970,7.0474847,160.75,160.7,16.80083014]
[1721227426174,0.8265847,160.75,160.72,6.2219]
[1721227426765,0.8265847,160.77,160.73,7.46573636]
[1721227426970,7.0466847,160.77,160.73,7.46568936]
[1721227427659,7.0466847,160.77,160.73,1.24418936]
[1721227427868,7.0466847,160.77,160.73,7.46568274]
[1721227428095,7.0462847,160.78,160.74,1.24416911]
[1721227428393,6.2197,160.78,160.74,1.24409515]
[1721227428688,6.2197,160.78,160.74,7.46519515]
[1721227429173,6.22,160.77,160.73,6.2215]
[1721227429372,6.22,160.77,160.74,45.0]
[1721227430184,6.2196,160.79,160.74,45.0]
[1721227430391,7.0464847,160.78,160.74,45.0]
[1721227430575,6.22,160.77,160.74,45.0]
[1721227430989,6.2197,160.78,160.74,46.24403504]
[1721227431285,0.8265847,160.8,160.74,61.79653504]
[1721227431286,6.2193,160.79,160.74,61.79653504]
[1721227431494,6.2193,160.79,160.74,66.7735]
[1721227431864,6.2199,160.78,160.74,45.0]
[1721227432187,6.2194,160.79,160.75,6.2207]
[1721227432566,6.2194,160.79,160.74,66.7737]
[1721227432767,7.0455847,160.8,160.75,6.2206]
[1721227432967,7.0455847,160.8,160.76,1.24392254]
[1721227433799,0.8265847,160.82,160.78,6.2193]
[1721227433965,6.2174,160.84,160.79,52.46293328]
[1721227434172,6.2174,160.84,160.8,1.24359675]
[1721227434972,6.2177,160.83,160.8,1.24359675]
[1721227435184,6.2174,160.84,160.8,1.24359675]
[1721227435673,0.8265847,160.86,160.8,16.79039675]
[1721227435900,0.8265847,160.9,160.81,51.0206]
[1721227436112,6.2147,160.91,160.86,6.2165]
[1721227436414,6.2151,160.9,160.85,6.2168]
[1721227436720,51.4159,160.95,160.89,6.2153]
[1721227436721,6.2138,160.93,160.89,6.2153]
[1721227437007,6.2138,160.93,160.88,6.2157]
[1721227437301,6.2138,160.93,160.89,1.24290777]
[1721227437487,6.2138,160.93,160.9,1.24284375]
[1721227437686,6.2135,160.94,160.9,1.24284375]
[1721227437897,8.07992129,160.98,160.9,1.24284375]
[1721227437898,0.8265847,160.98,160.9,1.24284375]
[1721227438215,6.3877,160.99,160.91,15.6767]
[1721227438216,0.8265847,160.99,160.91,15.6767]
[1721227438504,0.8265847,160.98,160.92,46.24252855]
[1721227438710,6.2122,160.98,160.93,7.45632946]
[1721227439198,6.2122,160.98,160.94,45.0]
[1721227439400,6.2123,160.97,160.94,45.0]
[1721227439703,6.2123,160.97,160.93,45.0]
[1721227440283,6.212,160.98,160.93,52.45632909]
[1721227440488,0.8265847,161.01,160.93,61.77702909]
[1721227440685,6.2112,161.0,160.95,6.213]
[1721227440984,6.2112,161.0,160.96,46.24235798]
[1721227441603,0.8265847,161.01,160.96,52.45495798]
[1721227441604,6.2108,161.01,160.96,52.45495798]
[1721227441812,6.2108,161.01,160.97,1.24226504]
[1721227442482,0.8265847,161.0,160.96,45.0]
[1721227442690,15.5231,161.05,160.96,45.0]
[1721227442691,0.8265847,161.04,160.96,45.0]
[1721227443089,6.2115,161.0,160.96,45.0]
[1721227443604,6.2121,160.98,160.91,31.2124]
[1721227443810,29.77,161.02,160.91,31.2124]
[1721227444006,15.6977,161.01,160.91,31.2124]
[1721227444180,6.2127,160.96,160.91,31.2124]
[1721227444372,6.2136,160.94,160.89,12.4613]
[1721227444576,6.2131,160.95,160.9,6.215]
[1721227444800,6.2131,160.95,160.91,6.2146]
[1721227445047,0.8265847,160.94,160.89,6.2462]
[1721227445218,0.8265847,160.93,160.86,22.0107]
[1721227445765,6.2149,160.91,160.86,6.2164]
[1721227445832,0.8265847,160.9,160.82,15.059]
[1721227446008,0.34,160.96,160.83,1.24324781]
[1721227446009,0.8265847,160.92,160.83,1.24324781]
[1721227446207,0.8265847,160.92,160.85,15.5416]
[1721227446412,0.8265847,160.92,160.82,15.059]
[1721227446413,6.2158,160.88,160.84,6.2173]
[1721227446580,6.2154,160.89,160.84,6.2173]
[1721227446779,0.8265847,160.88,160.84,6.2173]
[1721227447021,1.1665847,160.91,160.85,6.2168]
[1721227447384,0.8265847,160.93,160.86,1.24325434]
[1721227447598,6.2157,160.89,160.84,6.2173]
[1721227448105,6.2154,160.89,160.84,7.46045586]
[1721227448287,7.0423847,160.88,160.84,6.2172]
[1721227448475,7.0423847,160.88,160.83,15.5438]
[1721227448476,6.2149,160.91,160.85,1.24324815]
[1721227448689,6.2149,160.91,160.86,7.45942329]
[1721227448906,0.8265847,160.9,160.86,6.2163]
[1721227449113,7.0417847,160.9,160.85,21.7587]
[1721227449407,0.9965847,160.93,160.86,1.24319405]
[1721227449607,7.2106847,160.93,160.88,6.2158]
[1721227450090,7.2106847,160.93,160.86,46.24319405]
[1721227450091,0.9965847,160.93,160.86,45.0]
[1721227450302,6.2151,160.9,160.86,45.0]
[1721227450487,6.2146,160.92,160.86,46.24311656]
[1721227450686,0.8265847,160.91,160.86,45.0]
[1721227451022,0.8265847,160.91,160.82,30.604]
[1721227451312,6.2169,160.85,160.79,52.8622]
[1721227451492,7.0438847,160.84,160.8,6.2188]
[1721227451697,7.0438847,160.84,160.79,21.7669]
[1721227451917,0.8265847,160.83,160.79,21.7669]
[1721227452083,6.2169,160.85,160.8,1.24360289]
[1721227452413,0.8265847,160.87,160.82,6.218]
[1721227452617,0.17,160.86,160.79,15.5477]
[1721227452915,6.2176,160.84,160.79,21.7669]
[1721227453110,0.8265847,160.83,160.79,21.7669]
[1721227453286,0.17,160.86,160.8,1.24362302]
[1721227453488,6.2165,160.86,160.8,1.24362302]
[1721227453887,6.2165,160.86,160.8,46.24362302]
[1721227454204,6.2158,160.88,160.81,15.5456]
[1721227454382,6.2159,160.88,160.84,21.7606]
[1721227454580,0.17,160.89,160.8,45.0]
[1721227454581,7.0427847,160.87,160.8,45.0]
[1721227454789,0.9965847,160.89,160.81,15.5458]
[1721227455119,6.2171,160.85,160.81,15.5458]
[1721227455288,6.217,160.85,160.8,6.2188]
[1721227455491,6.2162,160.87,160.82,6.2177]
[1721227455695,0.8265847,160.86,160.83,6.2174]